fUSD/lending_fUSD_20251230
["ID","MTS","AMOUNT","RATE_DAILY","PERIOD"]
[400051168,1767053444022,-1221.52,0.00040411,2]
[400051170,1767053444031,-150.0,0.00040411,2]
[400051172,1767053444042,-1221.52,0.00040411,2]
[400051174,1767053444051,-150.0,0.00040411,2]
[400051176,1767053444061,-207.73447,0.00040488,30]
[400051178,1767053444071,-1351.0,0.00040539,6]
[400051180,1767053444081,-200.0,0.00040563,2]
[400051182,1767053444092,-200.0,0.00040563,2]
[400051184,1767053444102,-200.0,0.00040563,2]
[400051186,1767053444111,-200.0,0.00040563,2]
[400051188,1767053444122,-200.0,0.00040563,2]
[400051190,1767053444132,-200.0,0.00040563,2]
[400051192,1767053444142,-200.0,0.00040563,2]
[400051194,1767053444153,-200.0,0.00040563,2]
[400051196,1767053444163,-200.0,0.00040563,2]
[400051198,1767053444172,-200.0,0.00040563,2]
[400051200,1767053444182,-200.0,0.00040563,2]
[400051203,1767053444192,-200.0,0.00040563,2]
[400051205,1767053444202,-200.0,0.00040563,2]
[400051207,1767053444212,-200.0,0.00040563,2]
[400051209,1767053444221,-200.0,0.00040563,2]
[400051211,1767053444230,-200.0,0.00040563,2]
[400051213,1767053444240,-200.0,0.00040563,2]
[400051215,1767053444250,-200.0,0.00040563,2]
[400051217,1767053444260,-200.0,0.00040563,2]
[400051219,1767053444269,-200.0,0.00040563,2]
[400051221,1767053444279,-200.0,0.00040563,2]
[400051223,1767053444290,-200.0,0.00040563,2]
[400051225,1767053444299,-200.0,0.00040563,2]
[400051227,1767053444309,-200.0,0.00040563,2]
[400051229,1767053444319,-200.0,0.00040563,2]
[400051231,1767053444332,-200.0,0.00040563,2]
[400051233,1767053444343,-200.0,0.00040563,2]
[400051235,1767053444353,-200.0,0.00040563,2]
[400051237,1767053444362,-200.0,0.00040563,2]
[400051239,1767053444374,-200.0,0.00040563,2]
[400051242,1767053444385,-200.0,0.00040563,2]
[400051244,1767053444396,-200.0,0.00040563,2]
[400051246,1767053444408,-200.0,0.00040563,2]
[400051248,1767053444418,-200.0,0.00040563,2]
[400051250,1767053444431,-200.0,0.00040563,2]
[400051252,1767053444441,-200.0,0.00040563,2]
[400051254,1767053444451,-156.0,0.00040563,2]
[400051256,1767053444461,-554.77,0.00040575,2]
[400051258,1767053444471,-554.77,0.00040575,2]
[400051260,1767053444482,-554.77,0.00040575,2]
[400051262,1767053444491,-554.77,0.00040575,2]
[400051264,1767053444502,-554.77,0.00040575,2]
[400051266,1767053444512,-554.77,0.00040575,2]
[400051269,1767053444523,-554.77,0.00040575,2]
[400051271,1767053444534,-554.77,0.00040575,2]
[400051273,1767053444544,-554.77,0.00040575,2]
[400051275,1767053444553,-554.77,0.00040575,2]
[400051277,1767053444563,-554.77,0.00040575,2]
[400051279,1767053444573,-554.77,0.00040575,2]
[400051281,1767053444582,-554.77,0.00040575,2]
[400051283,1767053444594,-554.77,0.00040575,2]
[400051285,1767053444604,-554.77,0.00040575,2]
[400051287,1767053444614,-554.77,0.00040575,2]
[400051289,1767053444624,-554.77,0.00040575,2]
[400051291,1767053444635,-554.77,0.00040575,2]
[400051293,1767053444645,-554.77,0.00040575,2]
[400051295,1767053444655,-554.77,0.00040575,2]
[400051297,1767053444665,-554.77,0.00040575,2]
[400051299,1767053444675,-554.77,0.00040575,2]
[400051301,1767053444685,-554.77,0.00040575,2]
[400051303,1767053444695,-554.77,0.00040575,2]
[400051305,1767053444705,-161.0,0.000406,120]
[400051307,1767053444714,-152.0,0.000406,120]
[400051309,1767053444724,-207.73447,0.00040688,30]
[400051311,1767053444734,-207.73447,0.00040888,30]
[400051313,1767053444744,-206.0,0.0004093,30]
[400051315,1767053444754,-604.77457405,0.00040995,2]
[400051318,1767053444766,-333.0,0.00041,30]
[400051320,1767053444776,-952.31370534,0.00041,2]
[400051322,1767053444786,-199.999999,0.00041,2]
[400051324,1767053444797,-150.0,0.00041,120]
[400051326,1767053444806,-150.0,0.00041068,22]
[400051328,1767053444816,-150.0,0.00041068,7]
[400051330,1767053444826,-275.26332277,0.00041068,7]
[400051332,1767053444836,-150.0,0.00041068,7]
[400051334,1767053444846,-150.0,0.00041068,7]
[400051336,1767053444856,-150.0,0.00041068,7]
[400051338,1767053444867,-150.0,0.00041068,7]
[400051340,1767053444877,-150.0,0.00041085,120]
[400051342,1767053444887,-207.73447,0.00041088,30]
[400051344,1767053444896,-513.47065361,0.00041095,120]
[400051346,1767053444906,-1000.0,0.00041095,2]
[400051348,1767053444916,-1000.0,0.00041095,2]
[400051350,1767053444925,-1000.0,0.00041095,2]
[400051352,1767053444935,-1000.0,0.00041095,2]
[400051354,1767053444946,-500.0,0.00041095,2]
[400051356,1767053444956,-500.0,0.00041095,2]
[400051358,1767053444966,-500.0,0.00041095,2]
[400051360,1767053444976,-500.0,0.00041095,2]
[400051362,1767053444986,-500.0,0.00041095,2]
[400051364,1767053444995,-500.0,0.00041095,2]
[400051366,1767053445005,-500.0,0.00041095,2]
[400051368,1767053445016,-500.0,0.00041095,120]
[400051370,1767053445026,-500.0,0.00041095,120]
[400051372,1767053445035,-500.0,0.00041095,120]
[400051374,1767053445045,-500.0,0.00041095,120]
[400051376,1767053445056,-500.0,0.00041095,120]
[400051378,1767053445066,-500.0,0.00041095,120]
[400051380,1767053445075,-589.60590129,0.00041095,120]
[400051383,1767053445086,-345.59812047,0.00041095,120]
[400051385,1767053445096,-289.92587861,0.00041095,120]
[400051387,1767053445106,-378.97922974,0.00041095,120]
[400051389,1767053445117,-255.14830584,0.00041095,120]
[400051391,1767053445127,-647.9546244,0.00041095,120]
[400051393,1767053445137,-529.71652976,0.00041095,120]
[400051395,1767053445146,-200.0,0.00041095,120]
[400051397,1767053445156,-381.07101979,0.00041095,120]
[400051399,1767053445165,-607.26633679,0.00041095,120]
[400051401,1767053445175,-500.0,0.00041095,120]
[400051403,1767053445185,-221.18317844,0.00041095,120]
[400051404,1767053445194,-500.0,0.00041095,120]
[400051407,1767053445204,-261.90420098,0.00041095,120]
[400051408,1767053445213,-151.0,0.00041095,120]
[400051411,1767053445223,-500.0,0.00041095,30]
[400051412,1767053445232,-500.0,0.00041095,30]
[400051415,1767053445243,-500.0,0.00041095,30]
[400051417,1767053445253,-500.0,0.00041095,30]
[400051418,1767053445262,-500.0,0.00041095,30]
[400051420,1767053445273,-500.0,0.00041095,30]
[400051422,1767053445283,-500.0,0.00041095,30]
[400051424,1767053445292,-500.0,0.00041095,30]
[400051425,1767053445302,-500.0,0.00041095,30]
[400051426,1767053445312,-387.71194399,0.00041095,30]
[400051427,1767053445322,-271.5042151,0.00041095,30]
[400051428,1767053445337,-367.81648057,0.00041095,120]
[400051429,1767053445347,-500.0,0.00041095,30]
[400051430,1767053445357,-500.0,0.00041095,30]
[400051431,1767053445367,-500.0,0.00041095,30]
[400051433,1767053445379,-500.0,0.00041095,30]
[400051435,1767053445389,-500.0,0.00041095,30]
[400051437,1767053445399,-500.0,0.00041095,30]
[400051439,1767053445410,-500.0,0.00041095,30]
[400051441,1767053445420,-500.0,0.00041095,30]
[400051443,1767053445430,-500.0,0.00041095,30]
[400051445,1767053445439,-500.0,0.00041095,30]
[400051447,1767053445449,-500.0,0.00041095,30]
[400051449,1767053445460,-500.0,0.00041095,30]
[400051451,1767053445470,-500.0,0.00041095,30]
[400051453,1767053445480,-500.0,0.00041095,30]
[400051455,1767053445490,-500.0,0.00041095,30]
[400051457,1767053445499,-532.16982942,0.00041095,30]
[400051459,1767053445509,-244.16026519,0.00041095,120]
[400051461,1767053445520,-407.99704213,0.00041095,120]
[400051463,1767053445530,-801.758491,0.00041095,120]
[400051465,1767053445539,-801.758491,0.00041095,120]
[400051467,1767053445549,-801.758491,0.00041095,120]
[400051469,1767053445559,-801.758491,0.00041095,120]
[400051471,1767053445568,-271.4212119,0.00041095,120]
[400051473,1767053445578,-600.49901707,0.00041095,30]
[400051475,1767053445588,-282.13857552,0.00041095,120]
[400051478,1767053445598,-272.95059822,0.00041095,120]
[400051480,1767053445608,-332.80641846,0.00041095,120]
[400051482,1767053445623,-500.0,0.00041095,120]
[400051484,1767053445633,-500.0,0.00041095,120]
[400051486,1767053445643,-500.0,0.00041095,120]
[400051488,1767053445652,-500.0,0.00041095,120]
[400051490,1767053445662,-500.0,0.00041095,120]
[400051492,1767053445672,-500.0,0.00041095,120]
[400051494,1767053445682,-585.17935608,0.00041095,120]
[400051496,1767053445692,-287.59034492,0.00041095,120]
[400051498,1767053445702,-313.38233514,0.00041095,120]
[400051520,1767053445909,-151.0,0.00041095,30]
[400051522,1767053445920,-222.32124096,0.00041095,120]
[400051524,1767053445929,-241.16818442,0.00041095,120]
[400051526,1767053445939,-249.53043052,0.00041095,120]
[400051528,1767053445949,-258.26236648,0.00041095,120]
[400051530,1767053445959,-348.16490793,0.00041095,120]
[400051532,1767053445968,-270.33077534,0.00041095,120]
[400051534,1767053445978,-290.05497513,0.00041095,120]
[400051536,1767053445987,-304.46916368,0.00041095,120]
[400051538,1767053445999,-273.85136053,0.00041095,120]
[400051540,1767053446008,-286.03470533,0.00041095,120]
[400051542,1767053446018,-359.25304866,0.00041095,120]
[400051544,1767053446029,-500.0,0.00041095,120]
[400051546,1767053446039,-500.0,0.00041095,120]
[400051548,1767053446049,-454.36797516,0.00041095,120]
[400051550,1767053446060,-371.55167409,0.00041095,120]
[400051552,1767053446070,-380.42592953,0.00041095,120]
[400051554,1767053446080,-323.92426633,0.00041095,120]
[400051556,1767053446090,-459.63419303,0.00041095,120]
[400051558,1767053446101,-500.0,0.00041095,120]
[400051560,1767053446111,-285.98282305,0.00041095,120]
[400051563,1767053446121,-500.0,0.00041095,120]
[400051565,1767053446131,-200.0,0.00041095,120]
[400051567,1767053446142,-500.0,0.00041095,30]
[400051569,1767053446151,-500.0,0.00041095,30]
[400051572,1767053446161,-500.0,0.00041095,30]
[400051574,1767053446171,-500.0,0.00041095,30]
[400051576,1767053446181,-500.0,0.00041095,30]
[400051578,1767053446191,-500.0,0.00041095,30]
[400051580,1767053446201,-500.0,0.00041095,30]
[400051582,1767053446211,-500.0,0.00041095,30]
[400051584,1767053446221,-500.0,0.00041095,30]
[400051586,1767053446231,-500.0,0.00041095,30]
[400051588,1767053446241,-500.0,0.00041095,30]
[400051590,1767053446250,-500.0,0.00041095,30]
[400051592,1767053446260,-500.0,0.00041095,30]
[400051594,1767053446270,-500.0,0.00041095,120]
[400051596,1767053446280,-282.02167324,0.00041095,120]
[400051599,1767053446290,-500.0,0.00041095,120]
[400051601,1767053446300,-236.14572497,0.00041095,120]
[400051603,1767053446310,-356.16109666,0.00041095,120]
[400051605,1767053446319,-310.13832298,0.00041095,120]
[400051607,1767053446331,-389.52726674,0.00041095,120]
[400051609,1767053446343,-381.68398655,0.00041095,120]
[400051611,1767053446352,-457.68255314,0.00041095,120]
[400051613,1767053446363,-318.81360319,0.00041095,120]
[400051615,1767053446375,-392.03931637,0.00041095,120]
[400051617,1767053446385,-564.17151641,0.00041095,120]
[400051619,1767053446395,-354.5694392,0.00041095,120]
[400051621,1767053446409,-252.55892238,0.00041095,120]
[400051623,1767053446421,-300.80302461,0.00041095,120]
[400051625,1767053446437,-375.83616454,0.00041095,120]
[400051627,1767053446450,-235.39753348,0.00041095,120]
[400051629,1767053446460,-339.91662516,0.00041095,120]
[400051631,1767053446470,-599.97,0.00041095,120]
[400051634,1767053446480,-599.97,0.00041095,120]
[400051636,1767053446489,-599.97,0.00041095,120]
[400051638,1767053446498,-599.97,0.00041095,120]
[400051640,1767053446509,-599.97,0.00041095,120]
[400051642,1767053446518,-599.97,0.00041095,120]
[400051644,1767053446529,-599.97,0.00041095,120]
[400051646,1767053446538,-599.97,0.00041095,120]
[400051648,1767053446548,-293.63648189,0.00041095,120]
[400051650,1767053446558,-599.97,0.00041095,120]
[400051652,1767053446568,-599.97,0.00041095,120]
[400051654,1767053446583,-162.88745,0.00041095,120]
[400051656,1767053446595,-599.97,0.00041095,120]
[400051658,1767053446605,-599.97,0.00041095,120]
[400051660,1767053446615,-599.97,0.00041095,120]
[400051662,1767053446624,-500.0,0.00041095,120]
[400051665,1767053446636,-500.0,0.00041095,120]
[400051667,1767053446645,-162.88745,0.00041095,120]
[400051669,1767053446655,-500.0,0.00041095,120]
[400051671,1767053446665,-167.167504,0.00041095,120]
[400051673,1767053446675,-500.0,0.00041095,120]
[400051675,1767053446685,-400.0,0.00041095,120]
[400051677,1767053446697,-162.88745,0.00041095,120]
[400051679,1767053446707,-167.167504,0.00041095,120]
[400051681,1767053446717,-162.88745,0.00041095,120]
[400051683,1767053446727,-167.167504,0.00041095,120]
[400051685,1767053446737,-500.0,0.00041095,120]
[400051687,1767053446747,-500.0,0.00041095,120]
[400051689,1767053446757,-500.0,0.00041095,120]
[400051691,1767053446767,-500.0,0.00041095,120]
[400051693,1767053446777,-167.167504,0.00041095,120]
[400051695,1767053446787,-500.0,0.00041095,120]
[400051698,1767053446798,-500.0,0.00041095,120]
[400051700,1767053446808,-612.86109337,0.00041095,120]
[400051702,1767053446818,-292.78598436,0.00041095,120]
[400051704,1767053446827,-200.0,0.00041095,120]
[400051705,1767053446837,-402.86129218,0.00041095,120]
[400051708,1767053446848,-334.97878701,0.00041095,120]
[400051710,1767053446858,-151.0,0.00041095,120]
[400051712,1767053446868,-500.0,0.00041095,120]
[400051714,1767053446878,-500.0,0.00041095,120]
[400051716,1767053446887,-500.0,0.00041095,120]
[400051718,1767053446897,-500.0,0.00041095,120]
[400051720,1767053446907,-500.0,0.00041095,120]
[400051722,1767053446917,-304.58207026,0.00041095,120]
[400051724,1767053446926,-151.0,0.00041095,7]
[400051726,1767053446936,-151.0,0.00041095,120]
[400051727,1767053446946,-500.0,0.00041095,120]
[400051730,1767053446956,-621.91819427,0.00041095,120]
[400051732,1767053446968,-500.0,0.00041095,120]
[400051734,1767053446978,-211.83475622,0.00041095,120]
[400051736,1767053446987,-390.36117232,0.00041095,120]
[400051738,1767053446997,-151.0,0.00041095,2]
[400051740,1767053447008,-151.0,0.00041095,2]
[400051742,1767053447019,-200.0,0.00041095,120]
[400051744,1767053447028,-278.85216782,0.00041095,120]
[400051746,1767053447038,-200.0,0.00041095,120]
[400051748,1767053447048,-500.0,0.00041095,120]
[400051750,1767053447058,-500.0,0.00041095,120]
[400051752,1767053447068,-500.0,0.00041095,120]
[400051754,1767053447079,-190.32,0.00041095,120]
[400051756,1767053447090,-200.0,0.00041095,120]
[400051758,1767053447101,-175.37761041,0.00041095,120]
[400051761,1767053447111,-151.0,0.00041095,120]
[400051763,1767053447121,-200.0,0.00041095,120]
[400051765,1767053447136,-500.0,0.00041095,16]
[400051767,1767053447146,-500.0,0.00041095,16]
[400051769,1767053447157,-500.0,0.00041095,16]
[400051772,1767053447167,-500.0,0.00041095,16]
[400051774,1767053447177,-500.0,0.00041095,16]
[400051776,1767053447187,-500.0,0.00041095,16]
[400051778,1767053447198,-500.0,0.00041095,16]
[400051780,1767053447207,-500.0,0.00041095,16]
[400051782,1767053447217,-500.0,0.00041095,16]
[400051784,1767053447229,-500.0,0.00041095,16]
[400051786,1767053447238,-452.01452542,0.00041095,16]
[400051788,1767053447248,-341.28,0.00041095,120]
[400051790,1767053447258,-500.0,0.00041095,120]
[400051792,1767053447268,-500.0,0.00041095,120]
[400051794,1767053447279,-344.48052408,0.00041095,120]
[400051796,1767053447289,-500.0,0.00041095,120]
[400051797,1767053447299,-500.0,0.00041095,120]
[400051798,1767053447309,-155.92,0.00041095,120]
[400051799,1767053447320,-151.0,0.00041095,120]
[400051800,1767053447331,-311.41412771,0.00041095,120]
[400051801,1767053447343,-277.1609489,0.00041095,120]
[400051802,1767053447353,-314.84607118,0.00041095,120]
[400051803,1767053447363,-500.0,0.00041095,120]
[400051805,1767053447374,-465.36,0.00041095,120]
[400051807,1767053447384,-500.0,0.00041095,120]
[400051809,1767053447394,-500.0,0.00041095,120]
[400051811,1767053447406,-500.0,0.00041095,120]
[400051813,1767053447416,-500.0,0.00041095,120]
[400051815,1767053447426,-256.64,0.00041095,120]
[400051817,1767053447436,-500.0,0.00041095,120]
[400051819,1767053447446,-500.0,0.00041095,120]
[400051821,1767053447456,-542.8,0.00041095,120]
[400051823,1767053447466,-200.0,0.00041095,120]
[400051825,1767053447476,-500.0,0.00041095,120]
[400051827,1767053447485,-314.48,0.00041095,120]
[400051829,1767053447495,-500.0,0.00041095,120]
[400051832,1767053447510,-338.276254,0.00041095,120]
[400051834,1767053447520,-500.0,0.00041095,120]
[400051836,1767053447530,-500.0,0.00041095,120]
[400051838,1767053447540,-500.0,0.00041095,120]
[400051840,1767053447550,-181.2,0.00041095,120]
[400051842,1767053447560,-260.32137177,0.00041095,120]
[400051844,1767053447570,-338.276254,0.00041095,120]
[400051846,1767053447580,-338.276254,0.00041095,120]
[400051848,1767053447590,-338.276254,0.00041095,120]
[400051850,1767053447600,-221.2896729,0.00041095,120]
[400051852,1767053447611,-251.46995744,0.00041095,120]
[400051854,1767053447621,-349.1656353,0.00041095,120]
[400051856,1767053447631,-200.0,0.00041095,120]
[400051858,1767053447641,-397.2809207,0.00041095,120]
[400051860,1767053447651,-500.0,0.00041095,120]
[400051862,1767053447661,-500.0,0.00041095,120]
[400051864,1767053447671,-200.0,0.00041095,120]
[400051867,1767053447682,-500.0,0.00041095,120]
[400051869,1767053447692,-457.6019606,0.00041095,120]
[400051871,1767053447702,-500.0,0.00041095,120]
[400051873,1767053447713,-500.0,0.00041095,120]
[400051875,1767053447723,-500.0,0.00041095,120]
[400051877,1767053447733,-151.0,0.00041095,120]
[400051879,1767053447743,-151.0,0.00041095,120]
[400051881,1767053447753,-200.0,0.00041095,120]
[400051883,1767053447764,-255.163037,0.00041095,120]
[400051885,1767053447774,-200.0,0.00041095,120]
[400051887,1767053447784,-500.0,0.00041095,120]
[400051889,1767053447794,-161.41,0.00041095,120]
[400051891,1767053447804,-500.0,0.00041095,120]
[400051893,1767053447814,-500.0,0.00041095,120]
[400051895,1767053447824,-500.0,0.00041095,120]
[400051897,1767053447833,-500.0,0.00041095,120]
[400051900,1767053447843,-511.20751948,0.00041095,120]
[400051902,1767053447852,-500.0,0.00041095,120]
[400051904,1767053447866,-500.0,0.00041095,120]
[400051906,1767053447876,-344.96543506,0.00041095,120]
[400051908,1767053447886,-500.0,0.00041095,120]
[400051910,1767053447896,-500.0,0.00041095,120]
[400051912,1767053447907,-500.0,0.00041095,120]
[400051914,1767053447917,-430.76254044,0.00041095,120]
[400051916,1767053447927,-500.0,0.00041095,120]
[400051918,1767053447937,-340.21768027,0.00041095,120]
[400051921,1767053447947,-151.0,0.00041095,120]
[400051923,1767053447957,-500.0,0.00041095,120]
[400051925,1767053447968,-166.72,0.00041095,120]
[400051927,1767053447979,-151.0,0.00041095,120]
[400051929,1767053447991,-353.77337808,0.00041095,120]
[400051931,1767053448002,-200.0,0.00041095,120]
[400051933,1767053448013,-151.0,0.00041095,120]
[400051935,1767053448024,-235.68949999,0.00041095,120]
[400051937,1767053448034,-200.0,0.00041095,120]
[400051940,1767053448047,-279.87415363,0.00041095,120]
[400051942,1767053448066,-200.0,0.00041095,120]
[400051944,1767053448076,-500.0,0.00041095,120]
[400051946,1767053448086,-458.01174583,0.00041095,120]
[400051948,1767053448097,-500.0,0.00041095,120]
[400051950,1767053448107,-500.0,0.00041095,120]
[400051952,1767053448118,-500.0,0.00041095,120]
[400051954,1767053448128,-349.12,0.00041095,120]
[400051956,1767053448138,-500.0,0.00041095,120]
[400051958,1767053448147,-410.0,0.00041095,120]
[400051960,1767053448158,-500.0,0.00041095,120]
[400051962,1767053448168,-200.0,0.00041095,120]
[400051964,1767053448178,-436.50762431,0.00041095,120]
[400051966,1767053448188,-500.0,0.00041095,120]
[400051968,1767053448197,-404.85589305,0.00041095,120]
[400051969,1767053448207,-500.0,0.00041095,120]
[400051971,1767053448217,-500.0,0.00041095,120]
[400051973,1767053448227,-500.0,0.00041095,120]
[400051976,1767053448241,-500.0,0.00041095,120]
[400051978,1767053448251,-563.6,0.00041095,120]
[400051980,1767053448262,-409.630797,0.00041095,120]
[400051982,1767053448272,-500.0,0.00041095,120]
[400051984,1767053448281,-409.630797,0.00041095,120]
[400051986,1767053448291,-500.0,0.00041095,120]
[400051988,1767053448301,-230.63328582,0.00041095,120]
[400051990,1767053448311,-200.0,0.00041095,120]
[400051992,1767053448320,-409.630797,0.00041095,120]
[400051994,1767053448333,-409.630797,0.00041095,120]
[400051996,1767053448343,-500.0,0.00041095,120]
[400051998,1767053448354,-389.88324353,0.00041095,120]
[400052000,1767053448363,-500.0,0.00041095,120]
[400052002,1767053448375,-500.0,0.00041095,120]
[400052004,1767053448385,-336.66098415,0.00041095,120]
[400052006,1767053448395,-215.39900643,0.00041095,120]
[400052008,1767053448408,-218.892615,0.00041095,120]
[400052010,1767053448423,-235.20351801,0.00041095,120]
[400052012,1767053448433,-151.0,0.00041095,120]
[400052015,1767053448447,-500.0,0.00041095,120]
[400052017,1767053448458,-500.0,0.00041095,120]
[400052019,1767053448468,-500.0,0.00041095,120]
[400052021,1767053448479,-151.0,0.00041095,120]
[400052023,1767053448489,-500.0,0.00041095,120]
[400052025,1767053448500,-500.0,0.00041095,120]
[400052027,1767053448510,-500.0,0.00041095,120]
[400052029,1767053448520,-500.0,0.00041095,120]
[400052031,1767053448530,-500.0,0.00041095,120]
[400052034,1767053448541,-500.0,0.00041095,120]
[400052036,1767053448551,-151.0,0.00041095,120]
[400052038,1767053448561,-387.5917503,0.00041095,120]
[400052040,1767053448571,-395.88073506,0.00041095,120]
[400052042,1767053448581,-249.040299,0.00041095,120]
[400052044,1767053448592,-500.0,0.00041095,120]
[400052046,1767053448603,-200.0,0.00041095,120]
[400052048,1767053448613,-500.0,0.00041095,120]
[400052050,1767053448623,-500.0,0.00041095,120]
[400052052,1767053448634,-200.0,0.00041095,120]
[400052054,1767053448646,-200.0,0.00041095,120]
[400052056,1767053448656,-500.0,0.00041095,120]
[400052058,1767053448667,-150.0,0.00041095,120]
[400052060,1767053448677,-1049.576533,0.00041095,120]
[400052062,1767053448687,-1049.576533,0.00041095,120]
[400052064,1767053448697,-1049.576533,0.00041095,120]
[400052066,1767053448707,-500.0,0.00041095,120]
[400052068,1767053448717,-331.80291631,0.00041095,120]
[400052070,1767053448727,-500.0,0.00041095,120]
[400052072,1767053448737,-500.0,0.00041095,120]
[400052074,1767053448746,-1049.576533,0.00041095,120]
[400052076,1767053448757,-500.0,0.00041095,120]
[400052079,1767053448768,-534.27815094,0.00041095,120]
[400052081,1767053448778,-500.0,0.00041095,120]
[400052083,1767053448791,-500.0,0.00041095,120]
[400052085,1767053448802,-500.0,0.00041095,120]
[400052087,1767053448812,-224.96,0.00041095,120]
[400052089,1767053448822,-645.52262284,0.00041095,120]
[400052091,1767053448832,-584.88,0.00041095,120]
[400052093,1767053448843,-500.0,0.00041095,120]
[400052095,1767053448853,-500.0,0.00041095,120]
[400052097,1767053448863,-448.8192545,0.00041095,120]
[400052099,1767053448873,-509.93070006,0.00041095,30]
[400052100,1767053448882,-209.04771004,0.00041095,120]
[400052102,1767053448892,-3021.08369,0.00041095,28]
[400052105,1767053448902,-3021.08369,0.00041095,28]
[400052107,1767053448912,-3021.08369,0.00041095,28]
[400052109,1767053448922,-3021.08369,0.00041095,28]
[400052111,1767053448932,-151.0,0.00041095,120]
[400052112,1767053448942,-351.14901853,0.00041095,120]
[400052114,1767053448952,-151.0,0.00041095,120]
[400052116,1767053448962,-151.0,0.00041095,120]
[400052118,1767053448971,-151.0,0.00041095,120]
[400052120,1767053448981,-151.0,0.00041095,120]
[400052122,1767053448991,-382.43759317,0.00041095,120]
[400052124,1767053449003,-500.0,0.00041095,120]
[400052127,1767053449014,-500.0,0.00041095,120]
[400052130,1767053449035,-500.0,0.00041095,120]
[400052132,1767053449057,-320.144082,0.00041095,120]
[400052135,1767053449073,-500.0,0.00041095,120]
[400052137,1767053449088,-500.0,0.00041095,120]
[400052140,1767053449102,-500.0,0.00041095,120]
[400052142,1767053449115,-280.4,0.00041095,120]
[400052144,1767053449130,-320.144082,0.00041095,120]
[400052147,1767053449142,-320.144082,0.00041095,120]
[400052149,1767053449153,-320.144082,0.00041095,120]
[400052151,1767053449164,-500.0,0.00041095,120]
[400052152,1767053449176,-500.0,0.00041095,120]
[400052153,1767053449188,-328.4,0.00041095,120]
[400052154,1767053449200,-156.06143702,0.00041095,2]
[400052155,1767053449213,-280.64608852,0.00041095,120]
[400052156,1767053449225,-151.0,0.00041095,120]
[400052157,1767053449238,-151.0,0.00041095,120]
[400052158,1767053449250,-200.0,0.00041095,120]
[400052159,1767053449263,-4032.50232241,0.00041095,35]
[400052160,1767053449277,-200.0,0.00041095,120]
[400052162,1767053449288,-150.0,0.00041096,10]
[400052164,1767053449301,-312.21181666,0.00041096,2]
[400052167,1767053449313,-161.0,0.000411,120]
[400052169,1767053449326,-152.0,0.000411,120]
[400052171,1767053449339,-400.0,0.00041119,120]
[400052173,1767053449352,-443.87189176,0.00041119,120]
[400052175,1767053449365,-207.73447,0.00041288,30]
[400052178,1767053449384,-150.0,0.00041321,120]
[400052181,1767053449399,-1351.0,0.00041342,30]
[400052183,1767053449410,-604.77457401,0.0004135,2]
[400052185,1767053449423,-481.65,0.00041414,30]
[400052187,1767053449435,-481.65,0.00041414,30]
[400052189,1767053449447,-932.61001284,0.0004143,14]
[400052280,1767053450323,-1800.40606915,0.00019775,2]